[Event "Early-Titled-Tuesday-Blitz-August-29-2023"]
[Site "Chess.com"]
[Date "2023.08.29"]
[Round "1"]
[White "YEIKO2017"]
[Black "vovachesss"]
[Result "1-0"]
[WhiteElo "2444"]
[BlackElo "2791"]
[TimeControl "180+1"]
[EndTime "8:06:48 PDT"]
[Termination "YEIKO2017 won on time"]

1. e4 {[%clk 0:03:00.9]} 1... c6 {[%clk 0:02:51.8]} 2. Nc3 {[%clk 0:03:00]} 2...
d5 {[%clk 0:02:52.7]} 3. Nf3 {[%clk 0:03:00]} 3... Bg4 {[%clk 0:02:50.9]} 4. h3
{[%clk 0:02:59.6]} 4... Bxf3 {[%clk 0:02:51.1]} 5. Qxf3 {[%clk 0:03:00.4]} 5...
e6 {[%clk 0:02:48.2]} 6. d4 {[%clk 0:03:00.3]} 6... Nf6 {[%clk 0:02:37.4]} 7.
Bd3 {[%clk 0:02:59.2]} 7... Bb4 {[%clk 0:02:32.7]} 8. e5 {[%clk 0:02:57.6]} 8...
Nfd7 {[%clk 0:02:32.7]} 9. Qg3 {[%clk 0:02:57.8]} 9... g6 {[%clk 0:02:30]} 10.
O-O {[%clk 0:02:54.8]} 10... c5 {[%clk 0:02:28.8]} 11. a3 {[%clk 0:02:40.1]}
11... Ba5 {[%clk 0:02:14.4]} 12. Nb5 {[%clk 0:02:37.7]} 12... Bc7 {[%clk
0:01:58.1]} 13. Bg5 {[%clk 0:02:34.2]} 13... Qc8 {[%clk 0:01:46.6]} 14. c3
{[%clk 0:02:16.1]} 14... Nc6 {[%clk 0:01:40.8]} 15. b4 {[%clk 0:02:08.1]} 15...
cxd4 {[%clk 0:01:05]} 16. cxd4 {[%clk 0:02:09]} 16... O-O {[%clk 0:01:03.2]} 17.
Nxc7 {[%clk 0:02:06.9]} 17... Qxc7 {[%clk 0:01:03]} 18. Qh4 {[%clk 0:01:52]}
18... Qb6 {[%clk 0:00:55.2]} 19. b5 {[%clk 0:01:45.4]} 19... Na5 {[%clk
0:00:30.5]} 20. Rad1 {[%clk 0:01:37.8]} 20... Rac8 {[%clk 0:00:28.4]} 21. Qh6
{[%clk 0:01:35.4]} 21... Kh8 {[%clk 0:00:19.4]} 22. h4 {[%clk 0:01:26]} 22...
Nb3 {[%clk 0:00:12.4]} 23. h5 {[%clk 0:01:23.3]} 23... Rg8 {[%clk 0:00:11.6]}
24. hxg6 {[%clk 0:01:16.8]} 24... fxg6 {[%clk 0:00:09.8]} 25. g3 {[%clk
0:01:03.7]} 25... Nxd4 {[%clk 0:00:06.5]} 26. Kg2 {[%clk 0:01:04.2]} 26... Nf5
{[%clk 0:00:04.6]} 27. Bxf5 {[%clk 0:01:03.4]} 27... gxf5 {[%clk 0:00:05.5]} 28.
Rh1 {[%clk 0:00:59.1]} 28... Rg7 {[%clk 0:00:05.7]} 29. Bf6 {[%clk 0:00:51.6]}
29... Nxf6 {[%clk 0:00:05.8]} 30. Qxf6 {[%clk 0:00:52.5]} 30... Kg8 {[%clk
0:00:03.6]} 31. Rh6 {[%clk 0:00:46.9]} 31... Re8 {[%clk 0:00:04.1]} 32. Rdh1
{[%clk 0:00:44.6]} 32... Qc7 {[%clk 0:00:03.7]} 33. Rxh7 {[%clk 0:00:39]} 1-0

[Event "Early-Titled-Tuesday-Blitz-August-29-2023"]
[Site "Chess.com"]
[Date "2023.08.29"]
[Round "1"]
[White "PeshkaCh"]
[Black "TC2304"]
[Result "0-1"]
[WhiteElo "2786"]
[BlackElo "2441"]
[TimeControl "180+1"]
[EndTime "8:06:48 PDT"]
[Termination "TC2304 won by checkmate"]

1. Nf3 {[%clk 0:03:00.9]} 1... Nf6 {[%clk 0:02:56.3]} 2. d4 {[%clk 0:03:00.9]}
2... d5 {[%clk 0:02:55.7]} 3. c4 {[%clk 0:03:01.4]} 3... c6 {[%clk 0:02:56.3]}
4. e3 {[%clk 0:03:01.2]} 4... a6 {[%clk 0:02:56.7]} 5. Nbd2 {[%clk 0:03:00.3]}
5... Bf5 {[%clk 0:02:52.5]} 6. h3 {[%clk 0:03:00.3]} 6... e6 {[%clk 0:02:52.2]}
7. Nh4 {[%clk 0:02:58]} 7... Bg6 {[%clk 0:02:51.7]} 8. Nxg6 {[%clk 0:02:58.2]}
8... hxg6 {[%clk 0:02:52.6]} 9. Bd3 {[%clk 0:02:58.7]} 9... Nbd7 {[%clk
0:02:48.3]} 10. O-O {[%clk 0:02:58.9]} 10... Bd6 {[%clk 0:02:45.6]} 11. e4
{[%clk 0:02:58.8]} 11... dxe4 {[%clk 0:02:44.1]} 12. Nxe4 {[%clk 0:02:59.7]}
12... Nxe4 {[%clk 0:02:44.9]} 13. Bxe4 {[%clk 0:03:00.6]} 13... Nf6 {[%clk
0:02:45.6]} 14. Bc2 {[%clk 0:02:59.3]} 14... c5 {[%clk 0:02:32.8]} 15. dxc5
{[%clk 0:02:53.8]} 15... Bxc5 {[%clk 0:02:30.8]} 16. Ba4+ {[%clk 0:02:54.4]}
16... Ke7 {[%clk 0:02:30]} 17. Qf3 {[%clk 0:02:53.6]} 17... Qb6 {[%clk 0:02:14]}
18. a3 {[%clk 0:02:51.9]} 18... Rad8 {[%clk 0:02:04.6]} 19. b4 {[%clk
0:02:46.1]} 19... Bd4 {[%clk 0:02:03.1]} 20. c5 {[%clk 0:02:46.6]} 20... Qc7
{[%clk 0:02:01.4]} 21. Bf4 {[%clk 0:02:37.6]} 21... e5 {[%clk 0:01:54.8]} 22.
Rae1 {[%clk 0:02:37.8]} 22... Kf8 {[%clk 0:01:52.6]} 23. Bh2 {[%clk 0:02:34.1]}
23... a5 {[%clk 0:01:40.9]} 24. Qe2 {[%clk 0:02:21.7]} 24... axb4 {[%clk
0:01:29.9]} 25. axb4 {[%clk 0:02:22.6]} 25... Rh5 {[%clk 0:01:28.1]} 26. Rd1
{[%clk 0:02:18.6]} 26... Qe7 {[%clk 0:00:58.8]} 27. Rfe1 {[%clk 0:02:16.1]}
27... b6 {[%clk 0:00:57.4]} 28. c6 {[%clk 0:02:02.1]} 28... Qxb4 {[%clk
0:00:57.1]} 29. c7 {[%clk 0:01:54.7]} 29... Rc8 {[%clk 0:00:55.6]} 30. Bxe5
{[%clk 0:01:43.1]} 30... Rxe5 {[%clk 0:00:50.9]} 31. Qxe5 {[%clk 0:01:43.2]}
31... Bxe5 {[%clk 0:00:21.9]} 32. Rd8+ {[%clk 0:01:27.7]} 32... Ne8 {[%clk
0:00:20.8]} 33. Rxe5 {[%clk 0:01:28.2]} 33... Qxa4 {[%clk 0:00:18.5]} 34. Rxc8
{[%clk 0:01:06.1]} 34... Qa1+ {[%clk 0:00:18.5]} 35. Kh2 {[%clk 0:01:06.7]}
35... Qxe5+ {[%clk 0:00:19]} 36. g3 {[%clk 0:01:07.1]} 36... Qxc7 {[%clk
0:00:19.2]} 37. Rxc7 {[%clk 0:01:05.5]} 37... Nxc7 {[%clk 0:00:20.1]} 38. Kg2
{[%clk 0:01:06.2]} 38... Ke7 {[%clk 0:00:20.5]} 39. Kf3 {[%clk 0:01:06.8]} 39...
Ke6 {[%clk 0:00:21.2]} 40. Ke4 {[%clk 0:01:07.4]} 40... b5 {[%clk 0:00:21.8]}
41. Kd4 {[%clk 0:01:07.9]} 41... f5 {[%clk 0:00:21.8]} 42. Kc5 {[%clk
0:01:08.4]} 42... Ke5 {[%clk 0:00:22.2]} 43. f3 {[%clk 0:01:08.7]} 43... f4
{[%clk 0:00:22.1]} 44. g4 {[%clk 0:01:09.1]} 44... g5 {[%clk 0:00:22.7]} 45. Kb4
{[%clk 0:01:08.3]} 45... Kd4 {[%clk 0:00:23.2]} 46. Ka5 {[%clk 0:01:08.8]} 46...
Ke3 {[%clk 0:00:23.6]} 47. Kb6 {[%clk 0:01:09.2]} 47... Kxf3 {[%clk 0:00:24.2]}
48. Kxc7 {[%clk 0:01:09.9]} 48... b4 {[%clk 0:00:24.8]} 49. Kd6 {[%clk
0:01:10.6]} 49... b3 {[%clk 0:00:25.5]} 50. Ke5 {[%clk 0:01:11.5]} 50... b2
{[%clk 0:00:26.4]} 51. Kf5 {[%clk 0:01:12.4]} 51... b1=Q+ {[%clk 0:00:27]} 52.
Kxg5 {[%clk 0:01:13.3]} 52... Kg3 {[%clk 0:00:25.9]} 53. h4 {[%clk 0:01:13.4]}
53... f3 {[%clk 0:00:24.7]} 54. h5 {[%clk 0:01:13]} 54... Qh7 {[%clk 0:00:20.7]}
55. h6 {[%clk 0:01:12.6]} 55... Qxh6+ {[%clk 0:00:21]} 56. Kf5 {[%clk
0:01:13.3]} 56... Qf6+ {[%clk 0:00:21.3]} 57. Ke4 {[%clk 0:01:13]} 57... Qf4+
{[%clk 0:00:20.6]} 58. Kd3 {[%clk 0:01:13.3]} 58... f2 {[%clk 0:00:19]} 59. Ke2
{[%clk 0:01:14.2]} 59... f1=Q# {[%clk 0:00:19.5]} 0-1

[Event "Early-Titled-Tuesday-Blitz-August-29-2023"]
[Site "Chess.com"]
[Date "2023.08.29"]
[Round "1"]
[White "Markov_Mikhail"]
[Black "IPAchess"]
[Result "1-0"]
[WhiteElo "2651"]
[BlackElo "2323"]
[TimeControl "180+1"]
[EndTime "8:06:51 PDT"]
[Termination "Markov_Mikhail won by checkmate"]

1. c4 {[%clk 0:02:59.4]} 1... e6 {[%clk 0:03:00]} 2. Nf3 {[%clk 0:02:59]} 2...
Nf6 {[%clk 0:03:00.3]} 3. g3 {[%clk 0:02:59.2]} 3... d5 {[%clk 0:03:00.1]} 4.
Bg2 {[%clk 0:02:59.6]} 4... Be7 {[%clk 0:02:57.1]} 5. O-O {[%clk 0:02:59.9]}
5... d4 {[%clk 0:02:57.4]} 6. d3 {[%clk 0:02:58.9]} 6... c5 {[%clk 0:02:57.9]}
7. a3 {[%clk 0:02:46.5]} 7... Nc6 {[%clk 0:02:57.5]} 8. b4 {[%clk 0:02:46.5]}
8... cxb4 {[%clk 0:02:54.2]} 9. axb4 {[%clk 0:02:47.4]} 9... Bxb4 {[%clk
0:02:50.8]} 10. Qa4 {[%clk 0:02:29]} 10... O-O {[%clk 0:02:42.1]} 11. Ba3 {[%clk
0:02:02.4]} 11... Bxa3 {[%clk 0:02:39.4]} 12. Nxa3 {[%clk 0:02:03.3]} 12... e5
{[%clk 0:02:22.8]} 13. c5 {[%clk 0:01:53.1]} 13... Nd5 {[%clk 0:02:20.5]} 14.
Nc4 {[%clk 0:01:49]} 14... Nc3 {[%clk 0:02:15]} 15. Qc2 {[%clk 0:01:48]} 15...
Qe7 {[%clk 0:02:03.2]} 16. Nb6 {[%clk 0:01:24.2]} 16... Rb8 {[%clk 0:01:54.2]}
17. Na4 {[%clk 0:01:25.1]} 17... Nd5 {[%clk 0:01:38.1]} 18. Nd2 {[%clk 0:01:21]}
18... Be6 {[%clk 0:01:28.5]} 19. Ne4 {[%clk 0:01:17.2]} 19... b6 {[%clk
0:01:16.5]} 20. Rfb1 {[%clk 0:01:07.3]} 20... bxc5 {[%clk 0:01:02.2]} 21. Naxc5
{[%clk 0:01:08.2]} 21... Rxb1+ {[%clk 0:00:44.6]} 22. Rxb1 {[%clk 0:01:01.4]}
22... Rb8 {[%clk 0:00:40.5]} 23. Ra1 {[%clk 0:00:57.2]} 23... Ncb4 {[%clk
0:00:25.9]} 24. Qa4 {[%clk 0:00:43.4]} 24... Bf5 {[%clk 0:00:14.4]} 25. Qxa7
{[%clk 0:00:39.6]} 25... Qxa7 {[%clk 0:00:14.3]} 26. Rxa7 {[%clk 0:00:40.5]}
26... h6 {[%clk 0:00:14.4]} 27. h4 {[%clk 0:00:38]} 27... Bxe4 {[%clk
0:00:14.1]} 28. Bxe4 {[%clk 0:00:36.6]} 28... Nc3 {[%clk 0:00:14.2]} 29. Bf3
{[%clk 0:00:34.8]} 29... Nbd5 {[%clk 0:00:13.4]} 30. Nd7 {[%clk 0:00:33.7]}
30... Rb1+ {[%clk 0:00:12.7]} 31. Kg2 {[%clk 0:00:33.9]} 31... Rb2 {[%clk
0:00:08.7]} 32. Nxe5 {[%clk 0:00:32]} 32... Nxe2 {[%clk 0:00:07.8]} 33. Bxd5
{[%clk 0:00:32.2]} 33... Nc3 {[%clk 0:00:07.6]} 34. Bxf7+ {[%clk 0:00:32.2]}
34... Kf8 {[%clk 0:00:07.3]} 35. Ng6# {[%clk 0:00:32.3]} 1-0

[Event "Early-Titled-Tuesday-Blitz-August-29-2023"]
[Site "Chess.com"]
[Date "2023.08.29"]
[Round "1"]
[White "astralpulse"]
[Black "underthebridge1999"]
[Result "1-0"]
[WhiteElo "2626"]
[BlackElo "2292"]
[TimeControl "180+1"]
[EndTime "8:06:51 PDT"]
[Termination "astralpulse won by resignation"]

1. Nf3 {[%clk 0:02:59.9]} 1... d6 {[%clk 0:02:57.7]} 2. d4 {[%clk 0:02:59.1]}
2... g6 {[%clk 0:02:55.5]} 3. c4 {[%clk 0:02:59.1]} 3... Bg7 {[%clk 0:02:55.4]}
4. Nc3 {[%clk 0:02:59.7]} 4... Nd7 {[%clk 0:02:52.9]} 5. e4 {[%clk 0:02:54.1]}
5... c5 {[%clk 0:02:48.9]} 6. d5 {[%clk 0:02:52.5]} 6... Ngf6 {[%clk 0:02:46.7]}
7. Bd3 {[%clk 0:02:50.4]} 7... O-O {[%clk 0:02:12.8]} 8. O-O {[%clk 0:02:49.8]}
8... e5 {[%clk 0:01:51.5]} 9. dxe6 {[%clk 0:02:46.2]} 9... fxe6 {[%clk
0:01:49.2]} 10. h3 {[%clk 0:02:40.6]} 10... Nh5 {[%clk 0:01:41.7]} 11. Bg5
{[%clk 0:02:39]} 11... Qb6 {[%clk 0:01:40.2]} 12. Qd2 {[%clk 0:02:38.6]} 12...
Ne5 {[%clk 0:01:05.8]} 13. Be2 {[%clk 0:02:36.2]} 13... Bd7 {[%clk 0:00:38]} 14.
Nxe5 {[%clk 0:02:31.8]} 14... Bxe5 {[%clk 0:00:36.8]} 15. Bxh5 {[%clk
0:02:29.4]} 15... gxh5 {[%clk 0:00:35.7]} 16. Rad1 {[%clk 0:02:21.7]} 16... Be8
{[%clk 0:00:29.9]} 17. Bh6 {[%clk 0:02:04.4]} 17... Rf6 {[%clk 0:00:22.5]} 18.
Be3 {[%clk 0:02:04.2]} 18... Rg6 {[%clk 0:00:18.8]} 19. f4 {[%clk 0:01:58.6]}
19... Bxc3 {[%clk 0:00:16.9]} 20. Qxc3 {[%clk 0:01:58]} 20... Ba4 {[%clk
0:00:16.7]} 21. b3 {[%clk 0:01:49.4]} 21... Bc6 {[%clk 0:00:16.4]} 22. Qc2
{[%clk 0:01:06.3]} 22... Rd8 {[%clk 0:00:15]} 23. Bc1 {[%clk 0:01:02.4]} 23...
Qc7 {[%clk 0:00:14]} 24. Bb2 {[%clk 0:01:01.2]} 24... Qf7 {[%clk 0:00:13.7]} 25.
Rf3 {[%clk 0:00:52.5]} 25... h6 {[%clk 0:00:09.7]} 26. f5 {[%clk 0:00:48.2]}
26... exf5 {[%clk 0:00:08.7]} 27. Rxf5 {[%clk 0:00:48.4]} 27... Qe6 {[%clk
0:00:08.7]} 28. Qc3 {[%clk 0:00:43.4]} 28... Qxf5 {[%clk 0:00:05.2]} 29. exf5
{[%clk 0:00:42.6]} 29... Rxg2+ {[%clk 0:00:04.4]} 30. Kf1 {[%clk 0:00:43.3]}
30... Rf8 {[%clk 0:00:04.8]} 31. Qh8+ {[%clk 0:00:34.8]} 31... Kf7 {[%clk
0:00:03.4]} 32. Qh7+ {[%clk 0:00:32.8]} 32... Ke8 {[%clk 0:00:03.6]} 33. Re1+
{[%clk 0:00:32.9]} 33... Kd8 {[%clk 0:00:04]} 34. Qe7+ {[%clk 0:00:33.1]} 1-0

[Event "Early-Titled-Tuesday-Blitz-August-29-2023"]
[Site "Chess.com"]
[Date "2023.08.29"]
[Round "1"]
[White "gshwbedhkhd"]
[Black "AlexNovitz"]
[Result "1-0"]
[WhiteElo "2590"]
[BlackElo "2218"]
[TimeControl "180+1"]
[EndTime "8:06:52 PDT"]
[Termination "gshwbedhkhd won on time"]

1. f4 {[%clk 0:02:58.9]} 1... e5 {[%clk 0:02:55.1]} 2. fxe5 {[%clk 0:02:57.8]}
2... d6 {[%clk 0:02:54.9]} 3. exd6 {[%clk 0:02:58.5]} 3... Bxd6 {[%clk
0:02:54.9]} 4. Nf3 {[%clk 0:02:58.7]} 4... Bg4 {[%clk 0:02:52.6]} 5. e4 {[%clk
0:02:51.7]} 5... c5 {[%clk 0:02:37.8]} 6. Bc4 {[%clk 0:02:39.1]} 6... Nf6 {[%clk
0:02:32.9]} 7. d3 {[%clk 0:02:34.8]} 7... Nc6 {[%clk 0:02:32.3]} 8. O-O {[%clk
0:02:33.1]} 8... Ne5 {[%clk 0:02:21.4]} 9. Bb5+ {[%clk 0:02:32.3]} 9... Kf8
{[%clk 0:02:19.9]} 10. Nbd2 {[%clk 0:02:23.9]} 10... a6 {[%clk 0:02:16.2]} 11.
Bc4 {[%clk 0:02:16.1]} 11... b5 {[%clk 0:02:14.4]} 12. Bb3 {[%clk 0:02:14.2]}
12... Rc8 {[%clk 0:02:01.6]} 13. Qe2 {[%clk 0:01:39.7]} 13... h5 {[%clk
0:01:38.5]} 14. a4 {[%clk 0:01:32.3]} 14... h4 {[%clk 0:01:32.8]} 15. axb5
{[%clk 0:01:30.5]} 15... axb5 {[%clk 0:01:33.7]} 16. Kh1 {[%clk 0:01:20.5]}
16... Bb8 {[%clk 0:01:20.6]} 17. h3 {[%clk 0:01:16.5]} 17... Bh5 {[%clk
0:01:03.1]} 18. Qf2 {[%clk 0:01:11.2]} 18... Qd6 {[%clk 0:00:25]} 19. Nxe5
{[%clk 0:01:02.4]} 19... Qxe5 {[%clk 0:00:25.9]} 20. Nf3 {[%clk 0:01:01.9]}
20... Bxf3 {[%clk 0:00:24.9]} 21. gxf3 {[%clk 0:01:02.8]} 21... c4 {[%clk
0:00:20.5]} 22. dxc4 {[%clk 0:01:00]} 22... bxc4 {[%clk 0:00:21.4]} 23. Ba4
{[%clk 0:00:57.4]} 23... Nh5 {[%clk 0:00:20.9]} 24. Bd7 {[%clk 0:00:51.3]} 24...
Ng3+ {[%clk 0:00:19.7]} 25. Kg2 {[%clk 0:00:50.8]} 25... Rd8 {[%clk 0:00:15.2]}
26. Bc6 {[%clk 0:00:38.9]} 26... Rd6 {[%clk 0:00:09.2]} 27. Bd5 {[%clk
0:00:37.7]} 27... Rxd5 {[%clk 0:00:03.6]} 28. exd5 {[%clk 0:00:37]} 28... Qxd5
{[%clk 0:00:04.5]} 29. Re1 {[%clk 0:00:29.9]} 29... g6 {[%clk 0:00:02.3]} 30.
Be3 {[%clk 0:00:26.9]} 30... Kg7 {[%clk 0:00:01.2]} 31. Bd4+ {[%clk 0:00:27.1]}
31... f6 {[%clk 0:00:01.7]} 32. Re7+ {[%clk 0:00:26.5]} 1-0

[Event "Early-Titled-Tuesday-Blitz-August-29-2023"]
[Site "Chess.com"]
[Date "2023.08.29"]
[Round "1"]
[White "SashaKuzhilniy"]
[Black "le_poisson"]
[Result "0-1"]
[WhiteElo "2616"]
[BlackElo "2320"]
[TimeControl "180+1"]
[EndTime "8:06:56 PDT"]
[Termination "le_poisson won by resignation"]

1. b3 {[%clk 0:03:00.9]} 1... e5 {[%clk 0:02:59.7]} 2. Bb2 {[%clk 0:03:00.6]}
2... Nc6 {[%clk 0:02:59.4]} 3. c4 {[%clk 0:03:00.1]} 3... Nf6 {[%clk 0:02:55.9]}
4. e3 {[%clk 0:03:00.5]} 4... d5 {[%clk 0:02:55.8]} 5. cxd5 {[%clk 0:03:01.4]}
5... Nxd5 {[%clk 0:02:55.6]} 6. a3 {[%clk 0:02:57.9]} 6... Bd6 {[%clk
0:02:49.2]} 7. d3 {[%clk 0:02:55.2]} 7... O-O {[%clk 0:02:48.9]} 8. Nf3 {[%clk
0:02:54.6]} 8... a6 {[%clk 0:02:39.4]} 9. Nbd2 {[%clk 0:02:53.1]} 9... Bg4
{[%clk 0:02:32.8]} 10. h3 {[%clk 0:02:49.9]} 10... Bh5 {[%clk 0:02:32.3]} 11.
Be2 {[%clk 0:02:46.4]} 11... Qe7 {[%clk 0:02:25.9]} 12. O-O {[%clk 0:02:37.2]}
12... Kh8 {[%clk 0:02:25.5]} 13. Nc4 {[%clk 0:02:12.1]} 13... Rae8 {[%clk
0:02:23.2]} 14. b4 {[%clk 0:01:57.9]} 14... f5 {[%clk 0:02:18.3]} 15. Nxd6
{[%clk 0:01:58.2]} 15... cxd6 {[%clk 0:02:17.3]} 16. Rc1 {[%clk 0:01:54.9]}
16... f4 {[%clk 0:02:13.6]} 17. e4 {[%clk 0:01:49.5]} 17... Nc7 {[%clk
0:02:09.3]} 18. d4 {[%clk 0:01:33.4]} 18... exd4 {[%clk 0:02:00.4]} 19. Nxd4
{[%clk 0:01:02.7]} 19... Bxe2 {[%clk 0:01:59.9]} 20. Nxc6 {[%clk 0:00:48.6]}
20... Qxe4 {[%clk 0:01:48.5]} 21. Qxd6 {[%clk 0:00:42.2]} 21... Bxf1 {[%clk
0:01:37.1]} 22. Rxf1 {[%clk 0:00:16.2]} 22... Qxc6 {[%clk 0:01:36.5]} 23. Qd4
{[%clk 0:00:16.5]} 23... Ne6 {[%clk 0:01:28.2]} 24. Qe5 {[%clk 0:00:14.7]} 24...
f3 {[%clk 0:01:21]} 25. g3 {[%clk 0:00:14.5]} 25... Qc7 {[%clk 0:01:17.9]} 26.
Qh5 {[%clk 0:00:14.1]} 26... Qf7 {[%clk 0:01:15.8]} 27. Qh4 {[%clk 0:00:11]}
27... Qf5 {[%clk 0:01:08.7]} 28. Rc1 {[%clk 0:00:07.9]} 28... Rc8 {[%clk
0:01:05.5]} 29. Re1 {[%clk 0:00:07.9]} 29... Rce8 {[%clk 0:00:59.8]} 30. Kh2
{[%clk 0:00:06.1]} 30... Ng5 {[%clk 0:00:57.1]} 31. Rc1 {[%clk 0:00:04.7]} 31...
Re2 {[%clk 0:00:54.2]} 32. Bd4 {[%clk 0:00:05.1]} 32... Re4 {[%clk 0:00:42.3]}
33. Bxg7+ {[%clk 0:00:02]} 33... Kxg7 {[%clk 0:00:40.7]} 34. Rc7+ {[%clk
0:00:02.9]} 34... Rf7 {[%clk 0:00:38.7]} 35. Rxf7+ {[%clk 0:00:03.3]} 35... Nxf7
{[%clk 0:00:37.7]} 36. g4 {[%clk 0:00:01.6]} 36... Qf4+ {[%clk 0:00:37]} 37. Qg3
{[%clk 0:00:02]} 37... Qxg3+ {[%clk 0:00:36.5]} 38. Kxg3 {[%clk 0:00:02.9]}
38... Re2 {[%clk 0:00:36.3]} 0-1

[Event "Early-Titled-Tuesday-Blitz-August-29-2023"]
[Site "Chess.com"]
[Date "2023.08.29"]
[Round "1"]
[White "Sadykov_Ramil"]
[Black "Irina_Mikhaylova"]
[Result "1-0"]
[WhiteElo "2618"]
[BlackElo "2285"]
[TimeControl "180+1"]
[EndTime "8:06:56 PDT"]
[Termination "Sadykov_Ramil won by resignation"]

1. d4 {[%clk 0:02:59.2]} 1... Nf6 {[%clk 0:02:38.7]} 2. Nc3 {[%clk 0:02:58.5]}
2... d5 {[%clk 0:02:31.5]} 3. Bf4 {[%clk 0:02:57.6]} 3... c6 {[%clk 0:02:25.2]}
4. e3 {[%clk 0:02:57.3]} 4... g6 {[%clk 0:02:19.3]} 5. h4 {[%clk 0:02:51.9]}
5... h5 {[%clk 0:02:14.9]} 6. Nf3 {[%clk 0:02:46.7]} 6... Bg7 {[%clk 0:02:10.5]}
7. Be2 {[%clk 0:02:42.8]} 7... Bg4 {[%clk 0:02:08.2]} 8. Ne5 {[%clk 0:02:39.3]}
8... Bxe2 {[%clk 0:02:03.6]} 9. Qxe2 {[%clk 0:02:40.2]} 9... Nbd7 {[%clk
0:02:00.3]} 10. O-O-O {[%clk 0:02:35.2]} 10... Qa5 {[%clk 0:01:54.5]} 11. Kb1
{[%clk 0:02:32]} 11... Rd8 {[%clk 0:01:36.3]} 12. f3 {[%clk 0:02:28.7]} 12...
Nxe5 {[%clk 0:01:33.8]} 13. Bxe5 {[%clk 0:02:23.4]} 13... b5 {[%clk 0:01:19.9]}
14. Qe1 {[%clk 0:02:07.9]} 14... b4 {[%clk 0:01:15]} 15. Ne2 {[%clk 0:02:07.4]}
15... O-O {[%clk 0:01:14.6]} 16. Nc1 {[%clk 0:01:51.2]} 16... Qb5 {[%clk
0:01:12.1]} 17. Nd3 {[%clk 0:01:42]} 17... a5 {[%clk 0:01:09.4]} 18. Bxf6 {[%clk
0:01:34.8]} 18... exf6 {[%clk 0:01:04.2]} 19. g4 {[%clk 0:01:35.7]} 19... hxg4
{[%clk 0:00:57.1]} 20. fxg4 {[%clk 0:01:36.6]} 20... a4 {[%clk 0:00:55.6]} 21.
Qxb4 {[%clk 0:01:30.6]} 21... Qxb4 {[%clk 0:00:53.6]} 22. Nxb4 {[%clk
0:01:31.5]} 22... Rc8 {[%clk 0:00:52.7]} 23. c3 {[%clk 0:01:19.3]} 23... Rfe8
{[%clk 0:00:52.4]} 24. Rde1 {[%clk 0:01:18.8]} 24... Bh6 {[%clk 0:00:50.6]} 25.
Nc2 {[%clk 0:01:15.3]} 25... Re6 {[%clk 0:00:48.9]} 26. h5 {[%clk 0:01:12.8]}
26... Kg7 {[%clk 0:00:47.1]} 27. Kc1 {[%clk 0:01:03.2]} 27... Rce8 {[%clk
0:00:47.1]} 28. Kd2 {[%clk 0:01:03.3]} 28... Bg5 {[%clk 0:00:45.6]} 29. Kd3
{[%clk 0:01:03.3]} 29... f5 {[%clk 0:00:45.4]} 30. gxf5 {[%clk 0:01:02.2]} 30...
gxf5 {[%clk 0:00:44.6]} 31. Rhg1 {[%clk 0:01:01.2]} 31... Kh6 {[%clk 0:00:44.7]}
32. Rg2 {[%clk 0:00:54.9]} 32... Re4 {[%clk 0:00:43]} 33. Rf1 {[%clk 0:00:53.3]}
33... f4 {[%clk 0:00:39.1]} 34. exf4 {[%clk 0:00:51.5]} 34... Bxf4 {[%clk
0:00:38.6]} 35. Rgf2 {[%clk 0:00:45.2]} 35... Kg5 {[%clk 0:00:38.1]} 36. Rg2+
{[%clk 0:00:44.6]} 36... Kh6 {[%clk 0:00:37.3]} 37. Rg4 {[%clk 0:00:36.7]} 37...
f5 {[%clk 0:00:35]} 38. Rgxf4 {[%clk 0:00:30.4]} 1-0

[Event "Early-Titled-Tuesday-Blitz-August-29-2023"]
[Site "Chess.com"]
[Date "2023.08.29"]
[Round "1"]
[White "MaevskiyNikolay"]
[Black "HackWithBlack"]
[Result "1-0"]
[WhiteElo "2684"]
[BlackElo "2367"]
[TimeControl "180+1"]
[EndTime "8:06:57 PDT"]
[Termination "MaevskiyNikolay won on time"]

1. d4 {[%clk 0:03:00.2]} 1... d5 {[%clk 0:02:59.7]} 2. Nf3 {[%clk 0:03:00]} 2...
Nf6 {[%clk 0:02:59.6]} 3. c4 {[%clk 0:03:00]} 3... c6 {[%clk 0:03:00.2]} 4. Nc3
{[%clk 0:02:59.7]} 4... e6 {[%clk 0:03:00.4]} 5. g3 {[%clk 0:02:57.2]} 5... Nbd7
{[%clk 0:03:00]} 6. Bg2 {[%clk 0:02:55.9]} 6... Be7 {[%clk 0:02:57.2]} 7. b3
{[%clk 0:02:55.7]} 7... O-O {[%clk 0:02:56.1]} 8. O-O {[%clk 0:02:56]} 8... b6
{[%clk 0:02:55.1]} 9. Bf4 {[%clk 0:02:55.5]} 9... Bb7 {[%clk 0:02:52.6]} 10. Ne5
{[%clk 0:02:47.8]} 10... Nxe5 {[%clk 0:02:49.9]} 11. dxe5 {[%clk 0:02:46.1]}
11... Nd7 {[%clk 0:02:43.3]} 12. cxd5 {[%clk 0:02:46.3]} 12... cxd5 {[%clk
0:02:39.2]} 13. e4 {[%clk 0:02:46.6]} 13... Rc8 {[%clk 0:02:25.6]} 14. Rc1
{[%clk 0:02:41]} 14... Ba3 {[%clk 0:02:20.2]} 15. Rc2 {[%clk 0:02:40.2]} 15...
Bb4 {[%clk 0:01:55.3]} 16. Qd4 {[%clk 0:01:52.9]} 16... Bxc3 {[%clk 0:01:43.6]}
17. Rxc3 {[%clk 0:01:51.1]} 17... Rxc3 {[%clk 0:01:44.5]} 18. Qxc3 {[%clk
0:01:51.5]} 18... dxe4 {[%clk 0:01:42.5]} 19. Rd1 {[%clk 0:01:51.2]} 19... Qc8
{[%clk 0:01:25.2]} 20. Qd4 {[%clk 0:01:50.9]} 20... Nc5 {[%clk 0:01:18.2]} 21.
b4 {[%clk 0:01:44.7]} 21... Nd3 {[%clk 0:01:14.7]} 22. Bxe4 {[%clk 0:01:43.3]}
22... Nxf4 {[%clk 0:01:00.7]} 23. gxf4 {[%clk 0:01:42.1]} 23... Bxe4 {[%clk
0:00:57.8]} 24. Qxe4 {[%clk 0:01:42.4]} 24... a5 {[%clk 0:00:45]} 25. b5 {[%clk
0:01:34.7]} 25... Qc5 {[%clk 0:00:23.9]} 26. a4 {[%clk 0:01:33.4]} 26... g6
{[%clk 0:00:22.3]} 27. Rd6 {[%clk 0:01:31.6]} 27... Rc8 {[%clk 0:00:19.9]} 28.
Kg2 {[%clk 0:01:31.1]} 28... Qc4 {[%clk 0:00:15.7]} 29. Rd4 {[%clk 0:01:17.1]}
29... Qc1 {[%clk 0:00:13.8]} 30. Qb7 {[%clk 0:01:01.2]} 30... Qc5 {[%clk
0:00:04.5]} 31. Rd7 {[%clk 0:00:53.1]} 31... Rf8 {[%clk 0:00:03.9]} 32. Qc6
{[%clk 0:00:46.6]} 32... Qb4 {[%clk 0:00:03.7]} 33. Kg3 {[%clk 0:00:37.1]} 33...
Qa3+ {[%clk 0:00:02.8]} 34. f3 {[%clk 0:00:36.3]} 1-0